bitfinex/quotes_ETHUSD_20250625
["timestamp","ask_amount","ask_price","bid_price","bid_amount"]
[1750868463325,0.2072,2412.7,2412.5,4.14499353]
[1750868463626,1.917,2412.9,2412.0,11.1837695]
[1750868463627,4.14496676,2412.6,2412.0,4.97573572]
[1750868463810,4.1619234,2412.8,2412.0,2.06263344]
[1750868463991,4.1619234,2412.8,2412.5,4.1449797]
[1750868463992,0.0173,2412.8,2412.5,4.1449797]
[1750868464192,1.917,2412.9,2412.7,4.14465277]
[1750868464411,1.917,2412.9,2412.6,4.1448126]
[1750868464619,1.917,2412.9,2412.5,4.14500282]
[1750868464925,1.917,2412.9,2412.8,4.14456233]
[1750868465333,0.0173,2413.0,2412.6,4.14479412]
[1750868465627,1.917,2412.9,2412.8,4.14456233]
[1750868465814,1.917,2412.9,2412.7,4.14465952]
[1750868466529,1.917,2412.9,2412.6,4.14483695]
[1750868466730,1.917,2412.9,2412.5,4.92792107]
[1750868466731,1.917,2412.9,2412.5,4.1449829]
[1750868466906,1.917,2412.9,2412.5,4.14498309]
[1750868467325,2.52312296,2412.9,2412.3,4.96895345]
[1750868467633,2.52312296,2412.9,2412.2,4.14555677]
[1750868467634,4.16210895,2412.7,2412.2,4.14555677]
[1750868467849,1.9343,2412.9,2412.8,4.14456233]
[1750868468132,7.038,2413.2,2412.8,4.14456233]
[1750868468133,0.0173,2413.2,2412.9,4.1442811]
[1750868468332,0.0173,2413.2,2413.0,4.14421484]
[1750868468333,1.917,2413.2,2413.0,4.14421484]
[1750868468534,1.917,2413.2,2413.1,4.14404707]
[1750868468735,1.917,2413.2,2412.7,0.55]
[1750868468901,1.917,2413.2,2413.0,4.14409579]
[1750868469101,1.917,2413.2,2413.1,4.14404707]
[1750868469402,1.917,2413.2,2413.0,4.14415189]
[1750868470047,1.917,2413.2,2412.8,4.14448278]
[1750868470326,1.917,2413.2,2412.5,14.14500462]
[1750868470327,0.0173,2413.1,2412.5,14.14500462]
[1750868470527,4.1442337,2413.0,2412.6,4.14488459]
[1750868470734,4.16137149,2413.1,2412.6,4.14488459]
[1750868471297,4.16137149,2413.1,2412.5,14.14504989]
[1750868471298,4.16137149,2413.1,2412.7,4.14472709]
[1750868471500,4.16137149,2413.1,2412.6,4.1448113]
[1750868471697,4.14421881,2413.0,2412.5,4.14506128]
[1750868471928,4.14421881,2413.0,2412.4,1.3245]
[1750868472129,4.14438991,2413.0,2412.4,0.55]
[1750868472300,1.03951311,2413.1,2412.7,4.14465903]
[1750868472502,0.0173,2413.1,2412.6,4.14489104]
[1750868472734,0.0173,2413.1,2412.7,4.14461763]
[1750868473315,4.1445704,2412.8,2412.4,4.14517719]
[1750868473637,0.2072,2412.6,2412.2,4.14558993]
[1750868473809,0.2072,2412.6,2412.4,4.1452438]
[1750868474014,0.2072,2412.6,2412.4,4.14524954]
[1750868474219,0.2072,2412.6,2412.5,4.14507772]
[1750868474423,0.2072,2412.6,2412.4,4.14520549]
[1750868474631,0.2072,2412.6,2412.3,4.1453533]
[1750868474852,0.2072,2412.6,2412.4,4.14524209]
[1750868475141,0.2072,2412.6,2412.5,4.14507772]
[1750868475443,0.2072,2412.6,2412.3,4.14534856]
[1750868475444,0.2072,2412.6,2412.3,4.14535199]
[1750868475631,4.14503666,2412.6,2412.0,16.18726576]
[1750868475840,4.14542138,2412.3,2412.0,2.24863344]
[1750868476047,4.14542138,2412.3,2412.0,1.0159]
[1750868476215,0.0173,2412.4,2411.7,0.8321]
[1750868476542,0.2072,2412.3,2411.8,0.2072]
[1750868476742,1.914,2412.2,2412.0,4.14591378]
[1750868477114,1.914,2412.2,2411.8,0.2072]
[1750868477325,1.914,2412.2,2411.9,4.14609471]
[1750868477722,1.914,2412.2,2412.0,4.14585621]
[1750868477949,1.914,2412.2,2411.8,1.47137609]
[1750868478119,4.35342064,2411.9,2411.4,0.7985]
[1750868478320,0.2072,2411.7,2411.4,4.94543292]
[1750868478720,0.2072,2411.7,2411.5,4.1466614]
[1750868479019,14.14524448,2412.5,2411.6,0.7985]
[1750868479020,4.14517345,2412.5,2411.6,0.7985]
[1750868479219,4.14552804,2412.3,2411.8,4.14618042]
[1750868479432,4.14552804,2412.3,2411.7,0.55]
[1750868479433,4.14552804,2412.3,2411.7,4.69635757]
[1750868479649,4.14552804,2412.3,2411.7,5.66049561]
[1750868479858,4.1456105,2412.2,2411.7,5.66049561]
[1750868480379,0.0173,2412.0,2411.6,4.14658498]
[1750868480660,0.0173,2412.0,2411.4,1.92996105]
[1750868480661,1.914,2411.9,2411.5,4.14674746]
[1750868481023,1.914,2411.9,2411.7,4.1463449]
[1750868481237,1.914,2411.9,2411.6,4.14658478]
[1750868481439,1.914,2411.9,2411.8,4.14628078]
[1750868481650,14.14515168,2412.5,2412.0,4.14584098]
[1750868481651,0.0173,2412.3,2412.0,4.14584098]
[1750868481851,1.914,2412.2,2411.7,4.97832407]
[1750868482058,1.914,2412.2,2411.8,4.14627024]
[1750868482267,1.914,2412.2,2411.9,4.14601801]
[1750868482570,0.0173,2412.3,2411.8,0.55]
[1750868482787,0.0173,2412.9,2412.3,0.55]
[1750868483085,1.914,2412.8,2412.7,4.14464314]
[1750868483947,1.914,2412.8,2412.5,4.14495136]
[1750868484142,1.914,2412.8,2412.3,4.14539293]
[1750868484467,6.0586455,2412.8,2412.3,4.14539293]
[1750868484637,7.08067125,2412.8,2412.3,4.14539293]
[1750868484972,2.93602575,2412.8,2412.2,4.97740394]
[1750868485143,1.914,2412.8,2412.4,4.14522919]
[1750868486166,0.0173,2412.9,2412.3,0.55]
[1750868486330,1.914,2412.7,2412.6,4.14474873]
[1750868486946,0.0173,2412.9,2412.3,4.69540385]
[1750868487171,0.0173,2412.9,2412.7,4.14464331]
[1750868487336,1.914,2412.8,2412.7,4.14464331]
[1750868487651,1.914,2412.8,2412.3,0.55]
[1750868487830,1.914,2412.8,2412.7,4.14473411]
[1750868488030,1.914,2412.8,2412.5,4.14499081]
[1750868488643,6.0585858,2412.8,2412.3,4.69534142]
[1750868488877,4.1450572,2412.6,2412.1,4.69567317]
[1750868489074,0.2072,2412.5,2412.1,4.90287317]
[1750868489232,0.0173,2412.4,2411.8,0.8145]
[1750868489436,0.2072,2412.3,2412.0,4.14585064]
[1750868489671,0.2072,2412.3,2412.1,4.14574603]
[1750868490234,0.2072,2412.3,2412.2,4.14559323]
[1750868491450,0.2072,2412.3,2412.2,5.56015255]
[1750868491637,1.914,2412.5,2412.4,4.14517332]
[1750868498601,4.14524954,2412.4,2412.3,0.2072]
[1750868498755,7.0483,2412.4,2411.4,0.7528]
[1750868498962,5.0417855,2412.3,2411.8,4.14621565]
[1750868499554,5.0417855,2412.3,2411.5,0.55]
[1750868499759,5.0417855,2412.3,2411.8,4.14619879]
[1750868500054,7.0483,2412.4,2411.9,0.7617]
[1750868500055,0.0173,2412.4,2411.9,0.7617]
[1750868500359,1.914,2412.3,2412.2,4.14549907]
[1750868500559,1.914,2412.4,2412.1,4.14568561]
[1750868500962,1.914,2412.4,2412.2,4.14555735]
[1750868501485,1.914,2412.4,2412.3,4.14542138]
[1750868501686,1.914,2412.4,2412.0,0.55]
[1750868501888,1.914,2412.4,2412.1,4.14567919]
[1750868502273,1.914,2412.4,2412.3,4.14542138]
[1750868503383,1.914,2412.5,2412.4,4.14524954]
[1750868503682,1.914,2412.7,2412.6,4.14490591]
[1750868503884,10.77,2413.1,2412.5,0.55]
[1750868504083,12.684,2413.1,2413.0,4.14421881]
[1750868504407,12.684,2413.1,2412.5,0.55]
[1750868504574,0.0173,2413.0,2412.6,4.14482644]
[1750868504754,0.0173,2413.0,2412.3,10.0]
[1750868504954,0.0173,2413.0,2412.6,4.14481024]
[1750868505153,0.0173,2413.0,2412.8,4.14446271]
[1750868505154,1.914,2412.9,2412.8,4.14446271]
[1750868505699,1.91,2413.0,2412.9,4.14423469]
[1750868506279,1.91,2413.0,2412.8,4.14448951]
[1750868506503,1.91,2413.0,2412.9,4.14439056]
[1750868506958,10.77,2413.1,2412.9,4.14439056]
[1750868507155,12.68,2413.1,2412.8,4.14447312]
[1750868507591,12.68,2413.1,2412.9,4.14430468]
[1750868508087,10.77,2413.1,2412.8,4.14447306]
[1750868508282,12.68,2413.1,2412.9,4.14434329]
[1750868508691,12.68,2413.1,2412.8,4.14446885]
[1750868509192,12.68,2413.1,2413.0,4.14421881]
[1750868509761,0.0173,2413.6,2413.2,4.14387535]
[1750868510063,0.2064,2413.8,2413.7,4.14301694]
[1750868510486,1.91,2414.0,2413.9,4.14267368]
[1750868510689,1.91,2414.0,2413.8,4.1427691]
[1750868510869,1.91,2414.0,2413.9,4.14267368]
[1750868511271,1.91,2414.0,2413.7,4.14301694]
[1750868511485,1.91,2414.0,2413.6,0.2064]
[1750868511693,6.05259451,2414.0,2413.6,0.2064]
[1750868512212,4.14267368,2413.9,2413.4,0.8069]
[1750868512417,0.2064,2413.7,2413.4,0.8069]
[1750868512586,0.2064,2413.7,2413.5,4.14336026]
[1750868513783,0.2237,2413.7,2413.4,4.14343936]
[1750868514512,0.2237,2413.7,2413.5,4.14327307]
[1750868514909,0.2064,2413.7,2413.6,4.14318859]
[1750868517098,0.2064,2413.7,2413.5,4.14329359]
[1750868517415,0.2064,2413.7,2413.4,4.14348246]
[1750868518213,0.2064,2413.7,2413.3,0.2064]
[1750868518214,4.34946463,2413.7,2413.3,0.2064]
[1750868518515,1.909,2413.8,2411.6,0.41414727]
[1750868518516,0.2064,2413.3,2412.9,4.3514962]
[1750868518695,0.2064,2413.2,2412.9,0.2072]
[1750868519093,0.2064,2413.2,2412.8,4.60496031]
[1750868519311,0.2072,2413.0,2412.8,4.60496031]
[1750868519502,0.2072,2413.0,2412.8,0.46048869]
[1750868519693,0.2072,2413.0,2412.8,4.60495426]
[1750868520187,0.2072,2413.0,2412.8,0.46048869]
[1750868520584,0.2072,2413.0,2412.6,0.2072]
[1750868520809,0.2072,2412.9,2412.4,0.9959]
[1750868521004,0.2072,2412.9,2412.6,4.14480674]
[1750868521204,0.2072,2412.9,2412.6,5.07338519]
[1750868521986,0.2072,2412.9,2412.7,4.14468457]
[1750868522423,0.2072,2412.9,2412.8,4.14456233]
[1750868522949,0.2072,2412.9,2412.6,5.07341486]
[1750868523126,0.2072,2412.9,2412.7,4.14464936]
[1750868523419,0.2072,2412.9,2412.8,4.14456233]
[1750868523581,0.2072,2412.9,2412.8,5.00993729]
[1750868523785,0.2072,2413.1,2412.9,4.1442769]
[1750868524095,0.2072,2413.1,2412.8,5.00985282]
[1750868524531,0.2072,2413.1,2412.8,5.00982959]
[1750868524733,0.2072,2413.1,2412.8,0.86537496]
[1750868525040,4.35126217,2413.1,2412.8,0.86537496]
[1750868525211,0.0173,2413.0,2412.7,0.55]
[1750868525411,0.0173,2413.0,2412.6,4.35203683]
[1750868525600,0.2072,2412.9,2412.6,4.14483683]
[1750868526014,4.14463527,2412.8,2412.3,14.14532634]
[1750868526231,0.2072,2412.6,2412.4,1.41453263]
[1750868526607,0.2072,2412.6,2412.5,4.14507772]
[1750868526799,1.909,2412.9,2412.6,4.14475886]
[1750868527118,0.2072,2412.7,2412.4,5.55969382]
[1750868527727,0.2072,2412.7,2412.4,1.41453263]
[1750868528098,0.0173,2412.6,2412.4,1.41453263]
[1750868528443,0.0173,2412.6,2412.0,0.85480203]
[1750868528444,0.2072,2412.4,2412.0,4.35312884]
[1750868528800,2.1162,2412.4,2412.1,4.1457358]
[1750868528999,2.1162,2412.4,2412.2,0.55]
[1750868529194,1.909,2412.4,2412.3,0.54474358]
[1750868529817,4.3521994,2412.6,2412.3,0.54474358]
[1750868530024,6.05410003,2412.5,2412.3,0.54474358]
[1750868530226,6.05410003,2412.5,2412.1,0.9589]
[1750868530227,6.05410003,2412.5,2412.2,0.55]
[1750868531316,1.909,2412.5,2412.2,4.695523]
[1750868531927,2.1172,2412.6,2412.3,4.14533872]
[1750868532132,2.1172,2412.6,2412.4,4.14524507]
[1750868532635,2.1172,2412.6,2412.5,4.14507772]
[1750868532973,1.91,2412.6,2412.5,0.82902967]
[1750868533247,1.91,2412.6,2412.5,4.97410739]
[1750868534741,0.2072,2412.8,2412.7,4.14473411]
[1750868534946,1.91,2412.9,2412.8,4.14456233]
[1750868535952,1.91,2412.9,2412.7,4.69465572]
[1750868536256,1.91,2412.9,2412.7,5.76237831]
[1750868537551,1.91,2412.9,2412.8,4.14456233]
[1750868537760,4.14292357,2413.8,2412.9,0.55]
[1750868538059,12.6933,2413.6,2412.8,1.3061]
[1750868538256,12.6933,2413.6,2413.0,0.55]
[1750868538554,12.6933,2413.6,2413.2,4.69379013]
[1750868538923,12.676,2413.6,2413.3,0.7653]
[1750868539142,0.0173,2414.2,2413.4,0.55]
[1750868539328,0.0173,2414.2,2413.7,4.69300981]
[1750868539329,1.907,2414.1,2413.7,4.69300981]
[1750868539530,6.04933992,2414.1,2413.7,0.55]
[1750868539730,6.04933992,2414.1,2413.3,0.7653]
[1750868539731,2.92788156,2414.1,2413.3,0.7653]
[1750868539936,0.0173,2413.7,2413.3,0.7653]
[1750868540131,0.0173,2413.7,2413.3,4.90897678]
[1750868540549,0.0173,2414.0,2413.4,4.14336989]
[1750868540732,4.15989532,2414.0,2413.5,4.14333292]
[1750868541338,0.0173,2414.0,2413.3,0.7653]
[1750868541543,0.0173,2414.0,2413.5,4.14320807]
[1750868542053,1.906,2414.0,2413.6,0.755]
[1750868542256,1.906,2414.0,2413.6,4.89817573]
[1750868542449,1.906,2414.0,2413.6,4.89810373]
[1750868542639,1.906,2414.0,2413.7,4.14297864]
[1750868543059,0.0173,2414.3,2413.7,5.59712518]
[1750868543364,14.91270144,2414.5,2413.8,0.55]
[1750868543365,10.7883,2414.5,2413.8,0.55]
[1750868543557,10.7883,2414.5,2413.7,10.90410824]
[1750868543558,10.7883,2414.5,2414.2,4.14212799]
[1750868543732,10.771,2414.5,2414.2,4.14212799]
[1750868543928,10.771,2414.5,2414.3,4.14197681]
[1750868544625,10.771,2414.5,2414.2,4.69208679]
[1750868544828,10.771,2414.5,2414.3,4.14195981]
[1750868545028,1.9233,2414.7,2414.4,4.14172188]
[1750868545029,1.906,2414.7,2414.4,4.14172188]
[1750868545941,1.9233,2415.0,2414.5,0.55]
[1750868546130,1.9233,2415.0,2414.5,4.69157175]
[1750868546727,1.9233,2415.0,2414.7,4.14126628]
[1750868547058,1.906,2415.0,2414.8,4.14111467]
[1750868547424,1.906,2415.0,2414.5,1.51545443]
[1750868547631,1.906,2415.0,2414.5,5.65703208]
[1750868547854,0.2064,2414.9,2414.5,4.89797765]
[1750868548161,0.2064,2414.9,2414.6,4.14139491]
[1750868548561,0.2064,2414.9,2414.5,0.7564]
[1750868548763,1.906,2415.0,2414.7,4.14127099]
[1750868548967,1.906,2415.0,2414.7,4.69117818]
[1750868549170,1.906,2415.0,2414.7,0.55]
[1750868549371,1.906,2415.0,2414.7,5.16362497]
[1750868549665,1.906,2415.0,2414.9,4.14095821]
[1750868549843,1.906,2415.0,2414.8,4.9351721]
[1750868550245,1.906,2415.0,2414.8,0.7941]
[1750868550551,1.906,2415.0,2414.8,4.93521195]
[1750868551668,1.906,2415.0,2414.8,5.96576234]
[1750868552164,1.906,2415.0,2414.9,4.69095821]
[1750868552366,10.9754,2415.4,2415.2,4.14043559]
[1750868552566,10.769,2415.4,2415.3,4.14027242]
[1750868552738,1.905,2415.5,2415.2,5.48157313]
[1750868552937,1.905,2415.5,2415.2,1.3412]
[1750868553862,1.905,2415.5,2415.2,0.55]
[1750868555664,1.905,2415.5,2415.0,0.8259]
[1750868555665,4.14025863,2415.4,2415.0,0.8259]
[1750868555835,4.34665863,2415.4,2415.0,1.0323]
[1750868556950,0.2064,2415.4,2415.0,5.17308521]
[1750868557759,0.2064,2415.4,2415.1,4.14060184]
[1750868557961,7.017,2415.8,2415.0,2.12177365]
[1750868557962,4.13937489,2415.9,2415.4,0.55]
[1750868558270,0.2064,2415.9,2415.5,0.55]
[1750868558472,4.34566385,2415.9,2415.5,0.7564]
[1750868559043,4.13943364,2415.8,2415.5,0.7564]
[1750868560077,0.2064,2415.9,2415.5,4.8963084]
[1750868560277,0.2064,2415.9,2415.5,5.87902248]
[1750868560665,0.2064,2415.9,2415.5,1.739104]
[1750868560867,0.2064,2415.9,2415.5,5.87903323]
[1750868561246,0.2064,2415.9,2415.5,5.87893382]
[1750868561550,0.2064,2415.9,2415.7,4.13950874]
[1750868561764,4.1561172,2416.2,2415.7,4.13950874]
[1750868561952,0.2064,2416.1,2415.7,4.13950874]
[1750868562359,4.34535696,2416.1,2415.6,4.68972012]
[1750868563061,4.13908271,2416.0,2415.6,0.55]
[1750868563377,4.13908271,2416.0,2415.6,1.63094933]
[1750868565280,4.13934201,2415.9,2415.6,0.55]
[1750868565483,4.13932071,2415.9,2415.2,4.91101577]
[1750868565666,4.34572071,2415.9,2415.5,0.55]
[1750868567281,4.13958686,2415.7,2415.4,0.2064]
[1750868567578,4.13958686,2415.7,2415.1,10.0]
[1750868567579,4.14015487,2415.4,2415.1,0.2064]
[1750868567877,0.2064,2415.5,2415.1,4.34699849]
[1750868568084,4.34632962,2415.5,2415.1,0.2064]
[1750868568280,4.14028433,2415.3,2415.1,0.2064]
[1750868568482,4.15747989,2415.4,2415.1,0.2064]
[1750868570169,4.1403432,2415.3,2414.8,4.9743846]
[1750868570369,4.3467432,2415.3,2414.9,1.91156809]
[1750868570678,4.3467432,2415.3,2414.9,6.05251597]
[1750868570850,0.2064,2415.3,2414.9,6.05251597]
[1750868573079,0.2064,2415.3,2414.5,0.7876]
[1750868573080,4.14027437,2415.3,2414.5,0.7876]
[1750868573284,0.2064,2415.0,2414.8,10.0]
[1750868574276,0.0173,2415.4,2414.9,4.14092102]
[1750868574476,0.2064,2415.4,2415.1,4.1406124]
[1750868574689,0.2064,2415.4,2415.0,1.5161]
[1750868574985,0.2064,2415.4,2415.1,4.14061028]
[1750868575357,0.2064,2415.4,2415.0,6.22251572]
[1750868576393,0.2064,2415.4,2415.1,4.14052745]
[1750868576685,4.13947325,2415.8,2415.1,4.14052745]
[1750868576686,2.1074,2415.8,2415.6,4.13967144]
[1750868576897,2.1074,2415.8,2415.5,4.13985291]
[1750868577067,2.1074,2415.8,2415.5,5.06900717]
[1750868577589,1.901,2415.8,2415.6,4.896059]
[1750868577792,1.901,2415.8,2415.7,4.13958686]
[1750868578561,1.901,2415.8,2415.6,4.89607057]
[1750868578879,1.901,2415.8,2415.6,5.13626483]
[1750868579075,1.901,2415.8,2415.6,0.55]
[1750868579282,1.901,2415.8,2415.4,4.14007231]
[1750868579283,1.901,2415.8,2415.4,4.14002262]
[1750868579485,0.0173,2415.7,2415.4,0.55]
[1750868579676,0.0173,2415.7,2415.3,4.14021669]
[1750868579873,1.901,2415.8,2415.5,4.13992962]
[1750868580075,2.1074,2415.8,2415.5,4.13992962]
[1750868580478,1.901,2415.8,2415.5,4.13992962]
[1750868580674,1.901,2415.8,2415.5,4.34632962]
[1750868581000,1.901,2415.8,2415.5,0.2064]
[1750868581202,1.901,2415.8,2415.5,1.10427657]
[1750868583504,6.04044972,2415.8,2415.5,1.10427657]
[1750868583803,6.04044972,2415.8,2415.1,1.3312]
[1750868583804,0.2064,2415.5,2415.1,0.7812]
[1750868584004,0.2064,2415.4,2415.1,0.2064]
[1750868584370,0.2064,2415.4,2415.1,0.7564]
[1750868584701,0.2064,2415.4,2415.1,4.89694214]
[1750868585068,0.2064,2415.4,2415.2,4.14041764]
[1750868585264,0.2064,2415.4,2415.3,0.48968176]
[1750868586097,0.2064,2415.4,2415.3,1.03968176]
[1750868586300,6.03936562,2415.9,2415.4,4.69008774]
[1750868586472,0.2064,2415.8,2415.5,4.13991211]
[1750868586671,0.2064,2415.8,2415.5,5.17372027]
[1750868586897,0.2064,2415.8,2415.5,1.03380816]
[1750868587212,4.3458569,2415.8,2415.4,0.55]
[1750868588592,1.9,2415.9,2415.6,0.55]
[1750868588806,6.03932635,2415.9,2415.6,0.55]
[1750868589297,1.9,2415.9,2415.6,0.55]
[1750868589605,1.9,2415.9,2415.7,0.48963136]
[1750868589923,6.03928095,2415.9,2415.7,0.48963136]
[1750868590127,6.03928095,2415.9,2415.6,0.55]
[1750868590497,1.9,2415.9,2415.6,4.68965302]
[1750868590993,1.9,2415.9,2415.7,4.13958549]
[1750868591426,0.2064,2416.0,2415.7,4.13958549]
[1750868591627,0.2064,2416.0,2415.8,4.13939625]
[1750868591925,1.9,2416.1,2415.9,0.82789817]
[1750868591926,2.1064,2416.1,2415.9,0.82789817]
[1750868592107,6.24539153,2416.1,2415.8,0.8032]
[1750868592422,1.9,2416.1,2415.9,0.55]
[1750868592628,6.03898788,2416.1,2415.9,0.55]
[1750868593729,4.13907284,2416.0,2415.9,0.55]
[1750868594027,6.03897633,2416.1,2415.9,0.55]
[1750868594598,6.03897633,2416.1,2415.8,0.2064]
[1750868594793,1.9,2416.1,2415.8,0.2064]
[1750868594999,1.9,2416.1,2416.0,4.13907284]
[1750868595258,1.9,2416.1,2415.9,4.1391497]
[1750868595454,1.9,2416.1,2416.0,4.13907284]
[1750868596627,1.9,2416.1,2415.9,4.13918451]
[1750868596794,1.9,2416.1,2416.0,4.13907284]
[1750868596990,1.9,2416.1,2415.9,4.57375406]
[1750868597191,1.9,2416.1,2415.9,4.13917824]
[1750868597406,1.9,2416.1,2416.0,4.13907284]
[1750868597842,1.9,2416.1,2415.9,4.13915765]
[1750868598070,1.9,2416.1,2416.0,4.13907284]
[1750868598535,1.9,2416.1,2415.9,4.13915765]
[1750868599225,1.9,2416.1,2415.8,4.68933807]
[1750868599434,1.9,2416.1,2415.9,4.13917375]
[1750868600211,1.9,2416.1,2416.0,4.13907284]
[1750868601332,0.0173,2416.9,2416.0,1.63013018]
[1750868601533,0.0173,2417.1,2416.8,4.13766042]
[1750868601732,0.2064,2416.9,2416.8,4.13766042]
[1750868602134,0.2064,2416.9,2416.7,4.13777882]
[1750868602350,0.2064,2416.9,2416.5,4.68811614]
[1750868602645,0.0173,2416.8,2416.4,0.2064]
[1750868602947,0.0173,2416.8,2416.0,0.8314]
[1750868602948,0.2064,2416.6,2416.5,4.13821642]
[1750868603349,0.0173,2417.1,2416.8,4.13769027]
[1750868603643,12.76700007,2417.5,2417.0,4.13734412]
[1750868603842,10.7743,2417.6,2417.3,4.13684689]
[1750868604016,0.2064,2417.4,2417.3,4.13684689]
[1750868604217,4.15303514,2418.0,2417.4,4.13653466]
[1750868604457,0.2064,2417.8,2417.3,0.2064]
[1750868604658,0.2064,2417.8,2417.4,0.7939]
[1750868604868,0.2064,2417.8,2417.1,0.55]
[1750868604869,0.20717039,2419.3,2417.9,0.7939]
[1750868605030,0.0173,2419.7,2418.9,0.55]
[1750868605031,4.13305905,2419.6,2418.9,0.55]
[1750868605232,8.63048228,2419.4,2418.9,0.55]
[1750868605466,8.63048228,2419.4,2418.4,0.7939]
[1750868605750,4.13425358,2418.9,2418.4,0.7939]
[1750868606047,10.54178228,2419.1,2418.2,0.55]
[1750868606346,1.9113,2419.1,2418.2,10.55]
[1750868606560,4.13448281,2418.7,2418.2,12.09793463]
[1750868606853,4.13435226,2418.8,2418.2,12.09793463]
[1750868607058,4.13435226,2418.8,2418.2,16.23322768]
[1750868607356,6.02815415,2418.9,2418.2,16.23322768]
[1750868607357,4.13446091,2418.7,2418.2,12.09793463]
[1750868607726,6.02815415,2418.9,2418.2,16.23323122]
[1750868607727,4.13435323,2418.8,2418.2,16.23323122]
[1750868607932,4.13446444,2418.7,2418.3,1.70271312]
[1750868608130,4.13431535,2418.8,2418.3,1.70271312]
[1750868608443,4.1346343,2418.6,2418.2,11.54793463]
[1750868608633,4.13480906,2418.5,2418.2,11.54793463]
[1750868608947,4.13519698,2418.3,2417.8,0.55]
[1750868609147,6.02896526,2418.4,2417.7,0.7542]
[1750868609311,1.894,2418.4,2417.7,0.7542]
[1750868609514,1.894,2418.4,2417.4,11.88286263]
[1750868609747,1.894,2418.4,2417.5,10.0]
[1750868609938,4.13564797,2418.1,2417.6,0.55]
[1750868610134,4.13548894,2418.1,2417.5,15.24863766]
[1750868610327,4.13538481,2418.2,2417.7,10.0]
[1750868610527,4.1354966,2418.1,2417.6,0.55]
[1750868610737,4.13527099,2418.3,2417.5,5.24863363]
[1750868610738,0.0173,2418.3,2417.5,10.0]
[1750868610943,4.13575361,2418.0,2417.5,10.0]
[1750868611116,0.0173,2418.3,2417.5,10.0]
[1750868611117,4.13553499,2418.1,2417.6,10.0]
[1750868611319,0.0173,2418.3,2417.5,10.0]
[1750868611517,4.13591535,2417.9,2417.5,0.55]
[1750868612125,4.13602187,2417.8,2417.5,0.55]
[1750868612330,4.1361721,2417.7,2417.2,0.55]
[1750868612516,4.13601759,2417.8,2417.2,0.55]
[1750868612717,4.13601759,2417.8,2417.2,14.68693452]
[1750868613022,4.1360626,2417.8,2417.2,10.55]
[1750868613217,4.1360626,2417.8,2416.9,1.65246316]
[1750868613218,0.0173,2417.7,2416.9,1.65246316]
[1750868613422,4.13634019,2417.6,2416.9,5.78988136]
[1750868613748,4.13625834,2417.7,2417.2,0.55]
[1750868613940,4.13635851,2417.6,2417.2,0.55]
[1750868614150,4.13599139,2417.8,2417.1,4.68712628]
[1750868614448,4.13624535,2417.7,2417.1,4.68712628]
[1750868614639,4.13651067,2417.5,2417.0,0.55]
[1750868614821,4.13651067,2417.5,2417.2,0.55]
[1750868615517,4.34281693,2417.6,2417.2,0.55]
[1750868615718,17.9742619,2432.5,2418.2,0.55]
[1750868615719,4.13318821,2419.5,2418.2,0.55]
[1750868615915,0.2064,2419.7,2418.7,0.55]
[1750868616145,0.2227756,2420.1,2418.7,0.55]
[1750868616146,1.894,2419.8,2419.2,0.55]
[1750868616327,1.894,2419.8,2419.1,0.2064]
[1750868616328,0.2064,2419.6,2419.1,4.34005349]
[1750868616530,0.2064,2419.6,2419.1,0.2064]
[1750868616724,0.2064,2419.4,2418.6,0.8241]
[1750868616930,0.2064,2419.1,2418.7,0.7564]
[1750868617125,1.63433722,2419.7,2419.1,4.13365572]
[1750868617335,0.2064,2419.4,2418.9,4.34049698]
[1750868617530,0.2064,2419.4,2419.0,4.13393702]
[1750868617747,0.2064,2419.4,2418.9,0.2064]
[1750868618069,0.2064,2419.4,2419.2,4.13350577]
[1750868618223,0.2064,2419.4,2419.1,4.13370434]
[1750868618422,0.2064,2419.4,2418.9,4.3404662]
[1750868618423,0.2064,2419.4,2419.0,4.1338674]
[1750868618754,4.13346309,2419.3,2418.7,4.68437999]
[1750868619057,0.2064,2419.2,2418.8,4.34065831]
[1750868619434,0.2064,2419.2,2418.9,4.13405769]
[1750868619753,0.2064,2419.2,2418.7,0.55]
[1750868619754,0.2236,2418.7,2418.0,0.2064]
[1750868619953,12.21337221,2418.3,2417.6,4.13623797]
[1750868620260,11.24323836,2418.3,2417.7,4.13615067]
[1750868620445,11.24323836,2418.3,2417.5,0.7752]
[1750868620446,4.13533759,2418.2,2417.5,0.7752]
[1750868620751,4.13577113,2418.0,2417.2,5.71855567]
[1750868621056,4.13663605,2417.5,2417.2,0.41329143]
[1750868621260,1.893,2417.5,2417.2,0.41329143]
[1750868622931,6.02953002,2417.5,2417.2,0.41329143]
[1750868623439,6.02953002,2417.5,2417.0,10.0]
[1750868623763,4.13678276,2417.4,2416.8,4.13769673]
[1750868624774,4.1368537,2417.3,2416.7,4.68781167]
[1750868625065,0.2236,2417.3,2415.9,4.13921884]
[1750868625235,4.13764774,2416.9,2416.3,4.1384708]
[1750868625437,1.893,2416.8,2416.3,4.13853946]
[1750868625638,6.03080327,2416.8,2416.2,4.13865325]
[1750868625833,6.03080327,2416.8,2416.0,1.24522188]
[1750868625834,4.13797328,2416.7,2416.0,5.38415072]
[1750868626039,6.0307768,2416.8,2416.3,10.0]
[1750868626338,6.0307768,2416.8,2416.3,4.13855704]
[1750868626339,1.893,2416.8,2416.3,4.13855704]
[1750868627064,1.893,2416.8,2416.2,0.55]
[1750868627263,1.894,2416.7,2416.6,4.13793952]
[1750868627477,0.2236,2417.3,2416.6,0.55]
[1750868627643,1.958,2417.2,2416.7,0.46881939]
[1750868627843,0.2236,2417.3,2416.9,4.13736813]
[1750868628056,0.2236,2417.3,2416.8,4.13770274]
[1750868628057,1.958,2417.2,2417.0,4.13734706]
[1750868628580,1.958,2417.2,2416.9,4.13744247]